fUST/lending_fUST_20240928
["ID","MTS","AMOUNT","RATE_DAILY","PERIOD"]
[339366941,1727491046889,500.0,0.00025,2]
[339366942,1727491047286,500.0,0.00025,2]
[339366943,1727491047643,500.0,0.00025,2]
[339366944,1727491048179,500.0,0.00025,2]
[339366945,1727491048547,500.0,0.00025,2]
[339366946,1727491048902,500.0,0.00025,2]
[339366947,1727491049237,500.0,0.00021,30]
[339366948,1727491049575,500.0,0.00021,30]
[339366949,1727491049932,500.0,0.00021,30]
[339366950,1727491050280,500.0,0.00021,30]
[339366951,1727491050622,786.24214258,0.00021,30]
[339366965,1727491323658,781.48011009,0.00025,5]
[339366974,1727491555133,-154.7810627,0.00025,5]
[339366975,1727491625114,-1637.87277693,0.00025,5]
[339366977,1727491629111,-744.70430209,0.00025,5]
[339366978,1727491645142,-272.50671994,0.00025,5]
[339366979,1727491645167,-170.934266,0.00033884,30]
[339366980,1727491645195,-276.749103,0.00034932,2]
[339366981,1727491645221,-400.0,0.00035616,2]
[339366982,1727491645247,-198.138204,0.00035782,2]
[339366983,1727491645274,-198.138204,0.00036714,2]
[339366984,1727491645300,-275.30304254,0.00036846,120]
[339366985,1727491651117,-324.69695746,0.00036846,120]
[339366986,1727491651144,-600.0,0.00036846,120]
[339366987,1727491651169,-600.0,0.00036846,120]
[339366988,1727491651194,-600.0,0.00036977,120]
[339366989,1727491651218,-600.0,0.00036977,120]
[339366990,1727491651241,-600.0,0.00036977,120]
[339366991,1727491651267,-170.934266,0.0003745,30]
[339366992,1727491651296,-30.89316428,0.00037646,2]
[339366993,1727491747143,-167.2450397,0.00035247,2]
[339367039,1727491832035,-1349.85517898,0.00034514,120]
[339367134,1727491843092,-1150.14482102,0.00034514,120]
[339367135,1727491843102,-600.0,0.00037692,120]
[339367136,1727491843111,-600.0,0.00037692,120]
[339367137,1727491843120,-600.0,0.00037692,120]
[339367138,1727491843130,-600.0,0.00037692,120]
[339367139,1727491843139,-600.0,0.00037692,120]
[339367140,1727491843148,-600.0,0.00037692,120]
[339367141,1727491843157,-600.0,0.00037692,120]
[339367142,1727491843169,-1073.68807238,0.00037692,120]
[339367143,1727491843178,-600.0,0.00037692,120]
[339367144,1727491843187,-193.91741656,0.00037692,120]
[339367163,1727491850050,196.0,0.00035616,2]
[339367164,1727491850070,4.0,0.00035616,2]
[339367166,1727491880311,271.128015,0.00034932,2]
[339367169,1727491922533,168.0150828,0.00034391,2]
[339367171,1727491939625,226.344517,0.00027566,2]
[339367181,1727492735132,-928.30275652,0.000328,120]
[339367184,1727492842247,-476.1240959,0.000328,120]
[339367185,1727492844120,-2607.0133409,0.000328,120]
[339367186,1727492844144,-161.199257,0.00033309,2]
[339367187,1727492844168,-165.5309356,0.00034234,2]
[339367188,1727492844191,-304.6532481,0.00034712,2]
[339367189,1727492844213,-265.787982,0.00034932,2]
[339367190,1727492844238,-895.62845,0.00035,30]
[339367191,1727492844260,-400.0,0.00035616,2]
[339367192,1727492844281,-154.4425768,0.00037096,2]
[339367193,1727492844303,-308.0184882,0.00037096,2]
[339367194,1727492844331,-300.0,0.00037355,2]
[339367195,1727492844355,-400.0,0.00037355,2]
[339367196,1727492844381,-5303.03381414,0.00037357,2]
[339367197,1727492844406,-311.06782395,0.00037357,2]
[339367198,1727492844430,-1000.0,0.00037357,2]
[339367199,1727492844455,-1000.0,0.00037357,2]
[339367200,1727492844477,-1000.0,0.00037357,2]
[339367201,1727492844500,-1000.0,0.00037357,2]
[339367202,1727492844523,-1000.0,0.00037357,2]
[339367203,1727492844544,-1000.0,0.00037357,2]
[339367204,1727492844565,-1000.0,0.00037357,2]
[339367205,1727492844587,-1000.0,0.00037357,2]
[339367206,1727492844608,-1000.0,0.00037357,2]
[339367207,1727492844633,-1000.0,0.00037357,2]
[339367208,1727492844654,-1000.0,0.00037357,2]
[339367209,1727492844676,-1000.0,0.00037357,2]
[339367210,1727492844697,-1000.0,0.00037357,2]
[339367211,1727492844718,-1000.0,0.00037357,2]
[339367212,1727492844745,-1000.0,0.00037357,2]
[339367213,1727492844766,-809.00918172,0.00037357,2]
[339367214,1727492844789,-2193.05502169,0.00037526,2]
[339367215,1727492844815,-188.82485996,0.00037691,7]
[339367216,1727492844838,-406.08258344,0.00037692,120]
[339367217,1727492844860,-600.0,0.00037692,120]
[339367218,1727492844884,-600.0,0.00037692,120]
[339367219,1727492844904,-1187.80929162,0.000377,2]
[339367220,1727492844927,-213.3694757,0.00037781,2]
[339367221,1727492844947,-171.45,0.00037799,49]
[339367222,1727492844969,-3320.58849268,0.000378,30]
[339367223,1727492846119,-3177.01697905,0.000378,30]
[339367224,1727492849097,-153.91744582,0.000378,30]
[339367225,1727492854113,-2173.50086573,0.000378,30]
[339367240,1727493005880,171.52045456,0.00034932,2]
[339367241,1727493005903,102.09707344,0.00034932,2]
[339367280,1727493038628,-4483.09253637,0.000378,30]
[339367281,1727493038641,-600.0,0.000378,120]
[339367282,1727493038650,-600.0,0.000378,120]
[339367283,1727493038660,-598.52577735,0.000378,120]
[339367816,1727493067053,200.0,0.00035616,2]
[339367822,1727493953208,-2502.55681423,0.00032475,60]
[339367825,1727494029120,-174.91711753,0.00032475,60]
[339367826,1727494029142,-185.9041024,0.00033064,30]
[339367827,1727494029163,-113.30921176,0.00034854,2]
[339367828,1727494033126,-117.35056884,0.00034854,2]
[339367829,1727494033151,-160.38307,0.00034864,2]
[339367830,1727494033173,-268.153019,0.00034932,2]
[339367831,1727494033200,-284.4092275,0.00035038,2]
[339367832,1727494033222,-203.0561925,0.00035084,2]
[339367833,1727494033248,-218.858993,0.0003515,2]
[339367834,1727494033271,-327.0352214,0.00035166,2]
[339367835,1727494033294,-65.12207229,0.00035616,2]
[339367837,1727494043125,-324.87792771,0.00035616,2]
[339367838,1727494043148,-168.794373,0.00035639,2]
[339367839,1727494043170,-161.0,0.0003583,120]
[339367840,1727494043191,-218.858993,0.00035835,2]
[339367841,1727494043217,-18.66494869,0.00036011,2]
[339367842,1727494043247,-150.12942431,0.00036011,2]
[339367843,1727494043275,-168.794373,0.00036382,2]
[339367844,1727494043297,-218.858993,0.0003652,2]
[339367845,1727494043319,-168.794373,0.00036753,2]
[339367846,1727494043342,-500.0,0.00037068,10]
[339367847,1727494043364,-168.794373,0.00037125,2]
[339367848,1727494043387,-277.0,0.00037125,2]
[339367849,1727494043418,-168.794373,0.00037496,2]
[339367850,1727494043441,-161.0,0.0003758,120]
[339367851,1727494043462,-1.47422265,0.000378,120]
[339367852,1727494043485,-600.0,0.000378,120]
[339367853,1727494043506,-52.6167638,0.000378,120]
[339367854,1727494050122,-547.3832362,0.000378,120]
[339367855,1727494050149,-600.0,0.000378,120]
[339367856,1727494050301,-600.0,0.000378,120]
[339367857,1727494050325,-600.0,0.000378,120]
[339367858,1727494050347,-600.0,0.000378,120]
[339367859,1727494050368,-600.0,0.000378,120]
[339367860,1727494050390,-600.0,0.000378,120]
[339367861,1727494050411,-600.0,0.000378,120]
[339367862,1727494050431,-600.0,0.000378,120]
[339367863,1727494050453,-600.0,0.000378,120]
[339367864,1727494050475,-600.0,0.000378,120]
[339367865,1727494050496,-600.0,0.000378,120]
[339367866,1727494050518,-600.0,0.000378,120]
[339367867,1727494050551,-500.0,0.0003789,10]
[339367868,1727494050572,-500.0,0.00038,120]
[339367869,1727494050593,-500.0,0.00038,120]
[339367870,1727494050614,-500.0,0.00038,120]
[339367871,1727494050635,-500.0,0.00038,120]
[339367872,1727494050656,-14384.71809585,0.00038096,2]
[339367881,1727494119878,214.0,0.000195,10]
[339367889,1727494149299,-557.56889156,0.00032475,60]
[339367895,1727494203143,171.52045456,0.00036215,2]
[339367939,1727494232527,-78.47955484,0.00036215,2]
[339367941,1727494232538,-198.20156401,0.00037068,10]
[339368135,1727494238730,-301.79843599,0.00037068,10]
[339368136,1727494238739,-500.0,0.0003789,10]
[339368137,1727494238749,-500.0,0.00038,120]
[339368138,1727494238758,-500.0,0.00038,120]
[339368139,1727494238768,-335.47779637,0.00038,120]
[339368140,1727494238778,-1000.0,0.00038036,2]
[339368141,1727494238787,-25.88133892,0.00038037,2]
[339368142,1727494238798,-377.0444652,0.00038037,2]
[339368143,1727494238808,-623.90038249,0.00038047,2]
[339368151,1727494240480,-402.92580411,0.00038062,2]
[339368152,1727494240490,-402.92580411,0.00038087,2]
[339368153,1727494240499,-13581.27011717,0.00038096,2]
[339368154,1727494240510,-402.92580411,0.00038111,2]
[339368155,1727494240520,-1004.32,0.00038111,2]
[339368156,1727494240530,-3100.27,0.00038125,3]
[339368157,1727494240539,-155.53391198,0.00038126,2]
[339368158,1727494240549,-536888.11267369,0.00038126,7]
[339368268,1727494246396,-517.73794032,0.00038111,2]
[339368271,1727494246408,-267.28852392,0.00038111,2]
[339368274,1727494246420,-219.29413576,0.00038111,2]
[339368276,1727494246430,-125.80706424,0.00038116,3]
[339368363,1727494246911,276.040821,0.00034932,2]
[339368397,1727494525131,210.0,0.00019,2]
[339368409,1727495130136,-264.0,0.00025,7]
[339368410,1727495130158,-267.427522,0.00027566,2]
[339368411,1727495130185,-250.0,0.00034301,2]
[339368412,1727495130206,-163.8920687,0.00034301,2]
[339368413,1727495130227,-161.199257,0.00034314,2]
[339368414,1727495130250,-759.6865722,0.0003433,2]
[339368415,1727495130271,-283.7329884,0.00034331,2]
[339368416,1727495130293,-165.223641,0.00034755,2]
[339368417,1727495130315,-282.898049,0.00034932,2]
[339368418,1727495130337,-165.223641,0.00034936,2]
[339368419,1727495130358,-275.30304254,0.00035014,120]
[339368420,1727495130380,-165.223641,0.00035117,2]
[339368421,1727495130401,-300.0,0.00035258,2]
[339368422,1727495130425,-300.0,0.00035258,2]
[339368423,1727495130447,-64.59487044,0.00035299,2]
[339369365,1727495227141,-100.62877056,0.00035299,2]
[339369366,1727495227167,-165.223641,0.0003548,2]
[339369367,1727495227188,-243.97555161,0.0003553,2]
[339369368,1727495227209,-213.867503,0.00035616,120]
[339369369,1727495227230,-400.0,0.00035616,2]
[339369370,1727495227252,-161.1992585,0.0003563,2]
[339369371,1727495227276,-165.223641,0.00035661,2]
[339369372,1727495227431,-165.223641,0.00035842,2]
[339369373,1727495227456,-165.223641,0.00036023,2]
[339369374,1727495227479,-165.223641,0.00036204,2]
[339369375,1727495227503,-116.72898644,0.00036385,2]
[339369376,1727495237111,-48.49465456,0.00036385,2]
[339369377,1727495237135,-165.223641,0.00036566,2]
[339369378,1727495237155,-243.97555159,0.00036693,2]
[339369379,1727495237175,-237.23015563,0.000369,2]
[339369380,1727495237196,-500.0,0.00037068,10]
[339369381,1727495237216,-755.48552681,0.000375,30]
[339369383,1727495249133,-14602.29003766,0.000375,30]
[339369384,1727495250108,-894.45349612,0.000375,30]
[339369385,1727495251422,-1955.11644202,0.000375,30]
[339369388,1727495354126,-171.52045456,0.0003466,2]
[339369389,1727495357146,-16.32002844,0.0003466,2]
[339369390,1727495357171,-187.840483,0.00035564,2]
[339369393,1727495420245,226.344517,0.00027566,2]
[339369394,1727495426905,296.147003,0.00034932,2]
[339369438,1727495432544,-2500.0,0.0003453,120]
[339369442,1727495432560,-187.840483,0.00036467,2]
[339369445,1727495432573,-500.0,0.00037068,10]
[339369449,1727495432584,-12739.27239449,0.000375,30]
[339369462,1727495432680,-443.57967723,0.000375,30]
[339369464,1727495432694,-33493.60464553,0.000375,30]
[339369791,1727495438696,-925.02859853,0.000375,30]
[339369800,1727495438787,-14761.70899661,0.000375,30]
[339369803,1727495438801,-1483.50131457,0.000375,30]
[339369817,1727495439079,213.867503,0.00035616,120]
[339369822,1727495440737,-4368.41910499,0.000375,30]
[339369823,1727495440753,-42378.96939542,0.000375,30]
[339369824,1727495440769,-3035.30350175,0.000375,30]
[339369825,1727495440784,-45660.68972665,0.000375,30]
[339369826,1727495440830,-2119.41837599,0.000375,30]
[339369863,1727495443978,-2549.96985436,0.000375,30]
[339369865,1727495443990,-604.70649679,0.000375,30]
[339369869,1727495444026,-620.49573103,0.000375,30]
[339369873,1727495444054,-2106.18151288,0.000375,30]
[339369875,1727495444065,-2624.77507516,0.000375,30]
[339369893,1727495444224,-1040.21094786,0.000375,30]
[339370055,1727495481470,150.0,0.0001,25]
[339370057,1727495826423,900.0,0.00024,2]
[339370062,1727496414306,2869.56651025,0.0002,2]
[339370063,1727496431117,-170.934266,0.00033119,30]
[339370064,1727496431144,-168.0150828,0.00034405,2]
[339370065,1727496431173,-160.38307,0.00034638,2]
[339370066,1727496431201,-281.339652,0.00034932,2]
[339370067,1727496431229,-192.502942,0.00035097,2]
[339370068,1727496431257,-400.0,0.00035616,2]
[339370069,1727496431282,-192.502942,0.00035706,2]
[339370070,1727496431308,-192.502942,0.00036316,2]
[339370071,1727496431337,-192.502942,0.00036925,2]
[339370072,1727496431362,-300.0,0.00037499,2]
[339370073,1727496431391,-960.30082385,0.000375,30]
[339370074,1727496439161,-918.13998892,0.000375,30]
[339370075,1727496439190,-1321.04436885,0.000375,50]
[339370076,1727496442109,-803.10301497,0.000375,50]
[339370077,1727496452131,-2875.85261618,0.000375,50]
[339370078,1727496452153,-1250.9876003,0.00037699,2]
[339370079,1727496452176,-3209.04049994,0.00037789,5]
[339370080,1727496452196,-5182.98352673,0.00037789,5]
[339370081,1727496452216,-249.38,0.00037789,3]
[339370082,1727496452236,-748.15,0.00037789,3]
[339370083,1727496452262,-3255.05,0.00037789,3]
[339370084,1727496452284,-1655.66893503,0.00037789,3]
[339370087,1727496551134,-171.52045456,0.00034932,2]
[339370090,1727496566177,-95.75221444,0.00034932,2]
[339370091,1727496630151,403.1263593,0.00034542,2]
[339370105,1727496632616,-702.9100553,0.0003758,2]
[339370121,1727496639047,-391.70409498,0.0003758,2]
[339370122,1727496639058,-2436.59,0.00037669,3]
[339370123,1727496639068,-2436.59,0.00037669,3]
[339370124,1727496639077,-191.58427394,0.00037678,15]
[339370125,1727496639087,-368.99923604,0.00037678,15]
[339370126,1727496639095,-396.562843,0.00037678,15]
[339370127,1727496639105,-500.0,0.00037678,15]
[339370128,1727496639114,-500.0,0.00037678,15]
[339370129,1727496639123,-248.11213075,0.00037678,15]
[339370130,1727496639132,-557.04656517,0.00037678,15]
[339370131,1727496639142,-500.0,0.00037678,15]
[339370132,1727496639151,-515.54636158,0.00037678,15]
[339370133,1727496639161,-219.19765335,0.00037678,15]
[339370134,1727496639170,-171.13873606,0.00037679,2]
[339370135,1727496639179,-169.37663817,0.00037679,60]
[339370136,1727496639189,-1317.83163903,0.00037679,7]
[339370137,1727496639303,-2651.44551865,0.00037679,7]
[339370145,1727496640752,-248.79826198,0.00037679,7]
[339370146,1727496640764,-662.2694935,0.00037679,7]
[339370150,1727496643782,-36642.4159825,0.00037679,7]
[339370197,1727496663939,220.683547,0.00034275,2]
[339370198,1727496674269,3963.59679432,0.00024,2]
[339370199,1727496674291,737.90329641,0.00024,2]
[339370213,1727497217897,750.0,0.00024,2]
[339370219,1727497606963,500.0,0.00024,30]
[339370220,1727497622993,500.0,0.00024,30]
[339370221,1727497625149,-154.30651927,0.00026848,2]
[339370222,1727497625171,-654.09098645,0.00034313,120]
[339370223,1727497625193,-161.0,0.0003489,120]
[339370224,1727497625213,-277.848873,0.00034932,2]
[339370225,1727497625235,-161.173709,0.00035044,2]
[339370226,1727497625257,-165.404311,0.00035113,2]
[339370227,1727497625279,-166.696465,0.00035216,2]
[339370228,1727497625300,-165.404311,0.00035289,2]
[339370229,1727497625322,-166.696465,0.000354,2]
[339370230,1727497625343,-198.236943,0.00035411,2]
[339370231,1727497625363,-243.97555159,0.00035487,2]
[339370232,1727497625384,-930.98017204,0.00035574,2]
[339370233,1727497633121,-587.78148354,0.00035574,2]
[339370234,1727497639764,500.0,0.00024,30]
[339370235,1727497640104,-518.70630752,0.00035574,2]
[339370236,1727497640129,-166.696465,0.00035583,2]
[339370237,1727497640153,-400.0,0.00035616,2]
[339370238,1727497640178,-166.696465,0.00035767,2]
[339370239,1727497640202,-166.696465,0.0003595,2]
[339370240,1727497640226,-166.696465,0.00036134,2]
[339370241,1727497640250,-132.26844685,0.00036317,2]
[339370242,1727497642147,-34.42801815,0.00036317,2]
[339370243,1727497642169,-166.696465,0.00036501,2]
[339370244,1727497642190,-166.696465,0.00036684,2]
[339370245,1727497642212,-300.0,0.00036698,2]
[339370246,1727497642232,-277.0,0.00036699,2]
[339370247,1727497642253,-198.236943,0.0003678,2]
[339370248,1727497642275,-166.696465,0.00036868,2]
[339370249,1727497642295,-161.0,0.0003703,120]
[339370250,1727497642318,-166.696465,0.00037051,2]
[339370251,1727497642340,-500.0,0.00037068,10]
[339370252,1727497642361,-155.0,0.0003762,37]
[339370253,1727497642382,-593.63723689,0.00037648,2]
[339370264,1727497761166,-476.1240959,0.000328,120]
[339370265,1727497761190,-500.0,0.00034999,7]
[339370266,1727497761214,-213.73153954,0.00034999,7]
[339370267,1727497761236,-500.0,0.00034999,7]
[339370268,1727497761256,-17207.30796456,0.00035,2]
[339370271,1727497772121,-13208.38179536,0.00035,2]
[339370272,1727497792572,203.0561925,0.00031165,2]
[339370276,1727497805354,160.383075,0.00030891,2]
[339370277,1727497809953,218.858993,0.00031165,2]
[339370278,1727497810328,218.858993,0.00032535,2]
[339370345,1727497838105,-1327.70435469,0.00034539,120]
[339370347,1727497838115,-26775.92223238,0.00035,2]
[339370349,1727497838127,-1709.76474946,0.00035,2]
[339370492,1727498602213,1000.69,0.00024,2]
[339370494,1727498651947,1000.0,0.00024,2]
[339370495,1727498730101,-277.36408,0.00034932,2]
[339370496,1727498730123,-1970.62325824,0.00035,2]
[339370497,1727498730145,-284.4092275,0.0003518,2]
[339370498,1727498730167,-162.118294,0.00035236,2]
[339370499,1727498730190,-162.118294,0.0003544,2]
[339370500,1727498730212,-200.0,0.00035616,2]
[339370501,1727498730236,-162.118294,0.00035644,2]
[339370502,1727498730261,-162.118294,0.00035848,2]
[339370503,1727498730284,-162.118294,0.00036052,2]
[339370504,1727498730307,-162.118294,0.00036256,2]
[339370505,1727498730329,-162.118294,0.0003646,2]
[339370506,1727498730351,-162.118294,0.00036664,2]
[339370507,1727498730373,-162.118294,0.00036868,2]
[339370508,1727498730394,-523.31135926,0.0003703,120]
[339370509,1727498825144,-79.68496711,0.0003703,120]
[339370510,1727498825165,-500.0,0.00037068,10]
[339370511,1727498825187,-162.118294,0.00037073,2]
[339370512,1727498825207,-306.0,0.00037096,2]
[339370513,1727498825227,-1102.9530407,0.00037459,2]
[339370514,1727498825248,-435.85,0.00037519,60]
[339370515,1727498825269,-500.0,0.00037519,120]
[339370516,1727498825289,-256.46559787,0.00037519,120]
[339370517,1727498833093,-191.74440213,0.00037519,120]
[339370518,1727498833114,-371.17696943,0.00037539,2]
[339370519,1727498833135,-1000.0,0.00037539,2]
[339370520,1727498833157,-498.76,0.00037549,3]
[339370521,1727498833180,-366.92243562,0.00037558,2]
[339370522,1727498834125,-2290.2928074,0.00037558,2]
[339370523,1727498837111,-266.73723543,0.00037558,2]
[339370524,1727498837145,-199.00109135,0.00037558,2]
[339370525,1727498837167,-88888.0,0.00037559,60]
[339370526,1727498837187,-169.37663819,0.00037559,60]
[339370527,1727498837208,-371.1769694,0.00037577,2]
[339370528,1727498837229,-4008.85,0.00037578,3]
[339370529,1727498837250,-3340.71,0.00037578,3]
[339370530,1727498837274,-4810.62,0.00037588,3]
[339370531,1727498837298,-500.0,0.00037597,15]
[339370532,1727498837319,-258.29946523,0.00037597,15]
[339370533,1727498837340,-277.5939901,0.00037597,15]
[339370534,1727498837363,-173.67849153,0.00037597,15]
[339370535,1727498837385,-500.0,0.00037597,15]
[339370536,1727498837408,-439.93259562,0.00037597,15]
[339370537,1727498837431,-69763.8886906,0.00037598,5]
[339370538,1727498837454,-6865.17171147,0.00037598,5]
[339370539,1727498837479,-371.1769694,0.00037615,2]
[339370540,1727498837500,-139527.777381,0.00037618,5]
[339370541,1727498837522,-13730.3434229,0.00037618,5]
[339370542,1727498837544,-151.0,0.00037619,14]
[339370543,1727498837567,-159.511176,0.00037619,14]
[339370544,1727498837588,-151.0,0.00037619,14]
[339370545,1727498837610,-162.943575,0.00037619,14]
[339370546,1727498837633,-151.0,0.00037619,14]
[339370547,1727498837655,-151.0,0.00037619,14]
[339370548,1727498837679,-151.0,0.00037619,14]
[339370549,1727498837699,-151.0,0.00037619,14]
[339370550,1727498837719,-151.0,0.00037619,14]
[339370551,1727498837739,-232.914912,0.00037619,14]
[339370552,1727498837761,-151.0,0.00037619,14]
[339370553,1727498837784,-151.0,0.00037619,14]
[339370554,1727498837805,-151.0,0.00037619,14]
[339370555,1727498837827,-151.0,0.00037619,14]
[339370556,1727498837849,-151.0,0.00037619,14]
[339370557,1727498837876,-246.54744,0.00037619,14]
[339370558,1727498837899,-151.0,0.00037619,14]
[339370559,1727498837921,-151.0,0.00037619,14]
[339370560,1727498837944,-151.0,0.00037619,14]
[339370561,1727498837965,-151.0,0.00037619,14]
[339370562,1727498837986,-314.355186,0.00037619,14]
[339370563,1727498838007,-314.355186,0.00037619,14]
[339370564,1727498838027,-314.355186,0.00037619,14]
[339370565,1727498838047,-314.355186,0.00037619,14]
[339370566,1727498838066,-151.0,0.00037619,14]
[339370567,1727498838087,-151.0,0.00037619,14]
[339370568,1727498838109,-172.3646,0.00037619,14]
[339370569,1727498838132,-172.3646,0.00037619,14]
[339370570,1727498838153,-172.3646,0.00037619,14]
[339370571,1727498838173,-172.3646,0.00037619,14]
[339370572,1727498838194,-151.0,0.00037619,14]
[339370573,1727498838215,-234.064111,0.00037619,14]
[339370574,1727498838241,-151.0,0.00037619,14]
[339370575,1727498838265,-151.0,0.00037619,14]
[339370576,1727498838287,-151.0,0.00037619,14]
[339370577,1727498838307,-151.0,0.00037619,14]
[339370578,1727498838328,-9005.00258003,0.0003762,5]
[339370579,1727498838357,-130522.77480097,0.0003762,5]
[339370580,1727498838378,-13730.3434229,0.0003762,5]
[339370581,1727498838398,-171.451,0.00037628,49]
[339370582,1727498838419,-1000.0,0.00037638,2]
[339370583,1727498838443,-1000.0,0.00037638,4]
[339370584,1727498838464,-1000.0,0.00037638,6]
[339370585,1727498838485,-1000.0,0.00037638,8]
[339370586,1727498838506,-1000.0,0.00037638,10]
[339370587,1727498838528,-1000.0,0.00037638,12]
[339370588,1727498838551,-1000.0,0.00037638,14]
[339370589,1727498838571,-1000.0,0.00037638,16]
[339370590,1727498838591,-1000.0,0.00037638,18]
[339370591,1727498838612,-154.96527413,0.00037638,20]
[339370592,1727498854125,-151.0,0.00037619,14]
[339370593,1727498854156,-151.0,0.00037619,14]
[339370594,1727498854177,-817.97676593,0.00037638,20]
[339370595,1727498854199,-151.0,0.00037638,14]
[339370596,1727498854223,-164.878568,0.00037639,14]
[339370597,1727498854247,-157.156649,0.00037639,14]
[339370598,1727498854270,-151.0,0.00037639,14]
[339370599,1727498854291,-151.0,0.00037639,14]
[339370600,1727498854314,-151.0,0.00037648,14]
[339370601,1727498854335,-151.0,0.00037648,14]
[339370602,1727498854357,-151.0,0.00037648,14]
[339370603,1727498854381,-151.0,0.00037648,14]
[339370604,1727498854402,-277.227211,0.00037648,14]
[339370605,1727498854423,-314.355186,0.00037648,14]
[339370606,1727498854447,-314.355186,0.00037648,14]
[339370607,1727498854468,-152.428716,0.00037648,14]
[339370608,1727498854490,-172.3646,0.00037648,14]
[339370609,1727498854512,-172.3646,0.00037648,14]
[339370610,1727498854533,-151.0,0.00037648,14]
[339370611,1727498854558,-151.0,0.00037648,14]
[339370612,1727498854581,-151.0,0.00037648,14]
[339370613,1727498854604,-6338.41137607,0.00037649,5]
[339370615,1727498988819,161.1992585,0.00033919,2]
[339370664,1727499039002,-400.0,0.00035616,2]
[339370665,1727499039012,-237.23015563,0.000369,2]
[339370666,1727499039023,-10000.0,0.00037,30]
[339370667,1727499039033,-162.65036774,0.00037419,2]
[339370668,1727499039042,-162.65036773,0.00037439,2]
[339370669,1727499039051,-162.65036773,0.00037458,2]
[339370670,1727499039061,-194.31579307,0.00037517,15]
[339370671,1727499039070,-500.0,0.00037517,15]
[339370672,1727499039080,-180.80962566,0.00037517,15]
[339370673,1727499039090,-507.95281693,0.00037517,15]
[339370674,1727499039104,-199.00109134,0.00037518,2]
[339370675,1727499039115,-26011.89544348,0.00037518,7]
[339370676,1727499039316,-1188.168762,0.00037518,7]
[339370691,1727499046236,-2783.92,0.00037508,3]
[339370692,1727499046247,-14280.472722,0.00037518,7]
[339370693,1727499046451,-441.36532202,0.00037518,7]
[339370694,1727499046572,-371.4524333,0.00037518,7]
[339370695,1727499081031,518.433354,0.00033461,2]
[339370696,1727499081361,518.433354,0.00034146,2]
[339370697,1727499081730,518.433354,0.00034831,2]
[339370698,1727499086803,1805.13913292,0.00024,2]
[339370699,1727499086824,11530.30858,0.00024,2]
[339370700,1727499086849,3521.79199823,0.00024,2]
[339370701,1727499086870,232.77346286,0.00024,2]
[339370702,1727499086893,3545.152104,0.00024,2]
[339370703,1727499086914,158.3435588,0.00024,2]
[339370704,1727499086938,3821.0977242,0.00024,2]
[339370705,1727499086963,10385.39343899,0.00024,2]
[339370721,1727499954100,-422.3,0.00024059,2]
[339370722,1727499954124,-119.36068469,0.00025681,2]
[339370727,1727500034139,-377.2,0.00024059,2]
[339370728,1727500034161,-377.2,0.00025681,2]
[339370729,1727500034185,-377.2,0.00027303,3]
[339370730,1727500034211,-153.0,0.00028778,2]
[339370731,1727500034233,-377.2,0.00028925,4]
[339370732,1727500034255,-377.2,0.00030547,5]
[339370733,1727500034277,-678.6572,0.00030907,30]
[339370734,1727500034432,-185.9041024,0.00030989,30]
[339370735,1727500034457,-377.2,0.00032169,6]
[339370736,1727500034479,-161.177358,0.00032305,2]
[339370737,1727500034501,-283.7329884,0.00032593,2]
[339370738,1727500034522,-191.375531,0.00032633,2]